bitfinex/quotes_ETHUSD_20250813
["timestamp","ask_amount","ask_price","bid_price","bid_amount"]
[1755053195740,0.1088,4609.5,4609.4,8.556]
[1755053198774,1.9409,4609.5,4609.4,5.2]
[1755053199070,1.4955,4609.5,4609.4,8.556]
[1755053199242,0.1088,4609.5,4609.4,8.556]
[1755053200593,1.9409,4609.5,4609.4,8.556]
[1755053200757,2.13499,4609.5,4609.4,5.2]
[1755053201066,2.13499,4609.5,4609.4,8.556]
[1755053201486,2.13499,4609.5,4609.4,5.2]
[1755053201669,0.30289,4609.5,4609.4,8.556]
[1755053201868,0.1088,4609.5,4609.4,8.556]
[1755053202386,0.1088,4609.5,4609.4,9.0289]
[1755053202787,0.1088,4609.5,4609.4,8.556]
[1755053203655,1.9409,4609.5,4609.4,8.556]
[1755053204859,1.4955,4609.5,4609.4,8.556]
[1755053205067,1.64505,4609.5,4609.4,5.2]
[1755053205261,1.64505,4609.5,4609.4,8.556]
[1755053205777,0.25835,4609.5,4609.4,8.556]
[1755053205959,0.1088,4609.5,4609.4,8.556]
[1755053206357,0.1088,4609.5,4609.4,9.0289]
[1755053206753,0.002,4610.6,4609.4,10.4889]
[1755053206959,0.1088,4610.3,4609.5,1.9329]
[1755053207165,0.1088,4610.3,4609.6,3.8289]
[1755053207707,0.1088,4610.3,4609.7,0.4729]
[1755053207889,0.002,4610.6,4610.1,0.1088]
[1755053208208,0.002,4610.6,4610.2,3.356]
[1755053208402,0.002,4610.6,4610.2,5.2889]
[1755053208568,0.002,4610.6,4610.5,0.1088]
[1755053208763,0.002,4610.6,4610.5,3.4648]
[1755053209003,0.002,4610.6,4610.5,5.3977]
[1755053210066,0.002,4610.6,4610.5,7.75191228]
[1755053210364,0.002,4611.0,4610.6,1.10269905]
[1755053210563,0.002,4611.0,4610.7,3.356]
[1755053210797,0.002,4611.0,4610.9,0.1088]
[1755053211002,0.002,4611.0,4610.9,3.4648]
[1755053211203,0.002,4611.0,4610.9,5.3977]
[1755053212579,0.002,4611.0,4610.9,5.8389]
[1755053212778,0.002,4611.0,4610.9,5.9477]
[1755053212987,0.002,4611.0,4610.9,6.034356]
[1755053215325,0.002,4611.0,4610.9,8.20312999]
[1755053215511,0.002,4611.1,4611.0,2.71872695]
[1755053215830,0.002,4611.1,4611.0,12.22962695]
[1755053216737,0.002,4611.5,4611.2,0.55]
[1755053216914,0.002,4611.5,4611.3,3.905]
[1755053217240,0.002,4611.5,4611.4,5.63233883]
[1755053217538,0.002,4611.5,4611.4,7.56523883]
[1755053217734,0.002,4611.5,4611.4,5.3967]
[1755053218353,0.002,4611.5,4611.4,1.9917]
[1755053218823,0.002,4611.5,4611.4,2.5417]
[1755053219226,0.002,4611.5,4611.4,1.0817]
[1755053219547,0.002,4611.5,4611.4,3.8857]
[1755053219748,0.002,4611.5,4611.4,5.3372]
[1755053222324,0.002,4611.5,4611.4,3.8857]
[1755053224350,0.002,4611.5,4611.4,5.3372]
[1755053224853,0.002,4611.5,4611.4,5.8872]
[1755053225161,0.002,4611.5,4611.4,5.8372]
[1755053226332,0.002,4611.5,4611.4,6.0541]
[1755053227450,0.002,4611.5,4611.4,6.140745]
[1755053227833,0.002,4611.5,4611.4,4.689245]
[1755053228050,0.002,4611.5,4611.4,6.140745]
[1755053228663,0.002,4611.5,4611.4,8.40928383]
[1755053231226,0.002,4612.5,4612.0,0.2169]
[1755053231452,0.002,4612.5,4612.4,2.93496868]
[1755053231653,0.002,4612.5,4612.4,6.28796868]
[1755053231839,0.002,4612.5,4612.4,1.890632]
[1755053232039,0.002,4612.5,4612.4,4.769532]
[1755053232240,0.002,4612.5,4612.4,4.01033519]
[1755053232550,0.002,4612.5,4612.4,6.65250387]
[1755053232751,0.002,4612.5,4612.4,8.32090387]
[1755053233169,0.002,4612.5,4612.4,8.48125693]
[1755053234772,0.002,4612.5,4612.4,0.81768825]
[1755053235065,0.002,4612.5,4612.4,4.64478825]
[1755053235572,0.002,4612.5,4612.4,6.81285693]
[1755053235768,0.002,4612.5,4612.4,8.48125693]
[1755053237346,0.002,4612.5,4612.4,7.02975693]
[1755053237536,0.002,4612.9,4612.8,2.71788067]
[1755053237735,3.0887,4614.4,4613.1,0.2169]
[1755053237964,3.0887,4614.4,4613.6,2.71750108]
[1755053238131,3.0887,4614.4,4613.7,3.352]
[1755053238341,2.6341,4614.4,4614.0,0.55]
[1755053238638,2.6341,4614.4,4614.0,3.902]
[1755053239372,1.23,4614.4,4614.0,3.902]
[1755053239787,1.23,4614.4,4614.0,6.54341686]
[1755053239988,0.56148206,4614.1,4614.0,15.78581686]
[1755053240643,0.56148206,4614.1,4614.0,14.33431686]
[1755053241182,0.56148206,4614.1,4614.0,14.44231686]
[1755053241335,0.56148206,4614.1,4614.0,14.22541686]
[1755053241844,0.56148206,4614.1,4614.0,12.707507]
[1755053242240,0.56148206,4614.1,4614.0,14.87482386]
[1755053242438,0.56348206,4614.1,4614.0,14.87482386]
[1755053242667,0.56348206,4614.1,4614.0,12.233407]
[1755053243573,2.42218206,4614.1,4614.0,3.46]
[1755053244069,2.42218206,4614.1,4614.0,3.459]
[1755053244966,2.42218206,4614.1,4614.0,0.108]
[1755053245165,2.42218206,4614.1,4614.0,3.459]
[1755053245367,2.42218206,4614.1,4614.0,0.108]
[1755053245562,2.78740027,4614.1,4614.0,0.108]
[1755053245877,2.78740027,4614.1,4614.0,3.459]
[1755053246171,2.42218206,4614.1,4614.0,3.459]
[1755053246679,2.42218206,4614.1,4613.2,2.701]
[1755053246849,1.8587,4614.0,4613.8,0.108]
[1755053247173,1.8587,4614.0,4613.9,3.351]
[1755053247366,1.8587,4614.0,4613.8,0.108]
[1755053247566,0.24221821,4614.0,4613.9,3.351]
[1755053247778,0.56348206,4614.1,4613.8,0.108]
[1755053247951,0.56348206,4614.1,4613.9,3.351]
[1755053248744,1.8587,4614.0,4613.9,3.351]
[1755053248976,1.8587,4614.0,4613.2,2.701]
[1755053249277,1.8587,4613.9,4613.6,0.108]
[1755053249478,1.8587,4613.9,4613.2,2.701]
[1755053249479,2.10401821,4613.8,4613.7,3.351]
[1755053251180,2.10401821,4613.8,4613.2,2.701]
[1755053251379,1.8618,4613.7,4613.3,3.351]
[1755053251575,1.8618,4613.6,4613.2,2.701]
[1755053251786,2.07220182,4613.5,4613.2,2.701]
[1755053252051,1.8618,4613.4,4613.2,2.701]
[1755053252188,0.21040182,4613.5,4613.3,3.351]
[1755053252365,0.56348206,4614.1,4613.3,3.351]
[1755053252366,0.55,4614.0,4613.3,3.351]
[1755053252558,0.55,4614.0,4612.2,5.197]
[1755053252803,0.55,4613.8,4612.3,3.351]
[1755053253095,2.15798,4613.7,4612.3,3.351]
[1755053253402,1.8618,4613.6,4612.3,3.351]
[1755053253696,1.8618,4613.5,4612.3,3.351]
[1755053253864,1.8618,4613.4,4612.3,3.351]
[1755053254066,2.04798,4613.3,4612.4,3.351]
[1755053254277,1.8618,4613.2,4612.4,3.351]
[1755053254671,1.8618,4613.1,4612.4,3.351]
[1755053254882,0.4332,4613.0,4612.4,3.351]
[1755053255077,1.8618,4613.0,4612.2,5.197]
[1755053255281,2.04798,4612.9,4612.2,5.197]
[1755053255486,1.8618,4612.8,4612.3,3.352]
[1755053255669,0.18618,4612.9,4612.3,3.352]
[1755053255868,0.55,4614.0,4612.2,5.197]
[1755053255869,1.8618,4612.7,4612.4,3.352]
[1755053256071,0.55,4614.0,4612.4,3.352]
[1755053256391,1.8618,4612.6,4612.5,3.352]
[1755053258190,1.4286,4613.3,4612.5,3.352]
[1755053258394,0.4332,4613.1,4612.5,3.352]
[1755053259093,1.4286,4613.3,4612.5,3.352]
[1755053259483,0.4332,4613.2,4612.6,0.108]
[1755053261173,1.8618,4613.1,4612.7,3.352]
[1755053261394,0.002,4613.5,4612.7,3.352]
[1755053261395,0.108,4612.9,4612.7,3.352]
[1755053261599,0.108,4612.9,4612.8,3.352]
[1755053261785,0.108,4612.9,4612.2,5.3058]
[1755053261995,0.108,4612.9,4612.3,3.352]
[1755053262171,0.108,4612.9,4612.2,5.3058]
[1755053262372,0.108,4612.9,4612.4,3.352]
[1755053262575,0.108,4612.9,4612.2,5.3058]
[1755053262773,1.9698,4612.9,4612.3,3.352]
[1755053263070,0.19698,4612.9,4612.4,3.352]
[1755053263268,0.108,4612.6,4612.4,3.352]
[1755053263469,0.108,4612.6,4612.5,3.352]
[1755053263671,0.108,4612.6,4612.2,5.197]
[1755053263871,0.108,4612.6,4612.3,3.352]
[1755053264071,1.8618,4612.5,4612.3,3.352]
[1755053264271,1.8618,4612.4,4612.3,3.352]
[1755053264605,1.8618,4612.4,4612.3,3.353]
[1755053265092,1.4286,4612.4,4612.3,3.353]
[1755053265988,0.108,4612.6,4612.3,3.353]
[1755053266702,0.108,4612.6,4612.4,0.4673]
[1755053267067,0.108,4612.6,4612.3,3.353]
[1755053267304,0.108,4612.8,4612.3,3.353]
[1755053267505,0.108,4612.8,4612.4,0.4673]
[1755053267691,0.002,4613.0,4612.5,3.9281]
[1755053267872,0.002,4613.0,4612.5,0.1088]
[1755053268077,1.8618,4612.9,4612.5,0.1088]
[1755053268274,1.9698,4612.8,4612.6,3.352]
[1755053268474,1.5366,4612.8,4612.6,3.352]
[1755053268673,0.108,4612.8,4612.6,3.352]
[1755053268902,1.8618,4612.7,4612.3,0.001]
[1755053269084,1.8618,4612.7,4612.4,3.352]
[1755053269279,1.8618,4612.6,4612.5,3.352]
[1755053269480,1.4286,4612.6,4612.3,0.001]
[1755053269681,0.002,4613.0,4612.4,3.352]
[1755053269883,0.1088,4612.5,4612.4,3.352]
[1755053270407,1.9706,4612.5,4612.4,3.352]
[1755053270619,1.9706,4612.5,4612.3,0.001]
[1755053270841,0.30586,4612.5,4612.4,3.352]
[1755053270996,0.1088,4612.5,4612.4,3.352]
[1755053271395,1.9706,4612.5,4612.4,3.352]
[1755053273342,0.1088,4612.5,4612.4,3.352]
[1755053274000,0.108,4612.8,4612.4,3.8193]
[1755053274199,0.002,4613.0,4612.5,0.4673]
[1755053274496,0.002,4613.0,4612.9,0.108]
[1755053274701,0.002,4613.0,4612.9,3.71864892]
[1755053275132,0.002,4613.0,4612.9,5.68384892]
[1755053277628,0.002,4613.0,4612.9,0.83394892]
[1755053277832,0.002,4613.0,4612.9,3.9273]
[1755053278032,0.002,4613.0,4612.9,3.46]
[1755053278230,0.002,4613.0,4612.9,3.9273]
[1755053279299,0.002,4613.0,4612.9,0.5753]
[1755053279517,0.002,4613.0,4612.9,3.9263]
[1755053279832,0.002,4613.0,4612.9,3.459]
[1755053280335,0.002,4613.0,4612.9,3.351]
[1755053280506,1.4221,4613.0,4612.9,3.351]
[1755053280707,1.4221,4613.0,4612.4,2.8108]
[1755053280917,1.4221,4613.0,4612.5,3.351]
[1755053281720,1.4221,4613.0,4612.4,2.8108]
[1755053281923,1.4221,4613.0,4612.5,3.351]
[1755053282096,0.002,4613.0,4612.5,3.351]
[1755053282505,0.002,4613.0,4612.6,0.4395]
[1755053282904,0.002,4613.0,4612.9,0.108]
[1755053283236,0.002,4613.0,4612.9,3.459]
[1755053283433,0.002,4613.0,4612.9,3.8985]
[1755053283642,0.002,4613.0,4612.9,0.108]
[1755053283817,0.002,4613.0,4612.9,3.459]
[1755053284641,1.4221,4613.0,4612.9,3.351]
[1755053284934,1.8875,4613.0,4612.9,3.351]
[1755053285627,1.8875,4613.0,4612.9,8.547]
[1755053286015,1.4221,4613.0,4612.9,8.547]
[1755053286218,2.04051,4613.0,4612.9,5.196]
[1755053286416,2.04051,4613.0,4612.9,8.547]
[1755053286616,2.04051,4613.0,4612.9,5.196]
[1755053286939,2.04051,4613.0,4612.9,8.547]
[1755053287706,2.04051,4613.0,4612.9,5.196]
[1755053288119,2.16787218,4612.9,4612.3,0.001]
[1755053288309,0.1088,4612.4,4612.3,0.001]
[1755053288723,1.9943,4612.4,4612.3,0.001]
[1755053288942,1.9943,4612.4,4612.3,3.352]
[1755053289109,1.9943,4612.4,4612.3,0.001]
[1755053289317,4.91179868,4612.4,4612.3,3.352]
[1755053289583,0.55,4612.3,4611.6,0.001]
[1755053289718,2.16820822,4612.2,4611.6,0.001]
[1755053289924,0.1088,4611.9,4611.6,0.001]
[1755053290231,0.19943,4612.4,4611.6,0.001]
[1755053290432,1.9943,4611.9,4611.6,0.001]
[1755053290637,1.9943,4611.9,4611.8,3.352]
[1755053291141,0.1088,4611.9,4611.8,3.352]
[1755053291651,0.1088,4611.9,4611.8,3.7915]
[1755053291944,0.1088,4612.1,4611.8,3.7915]
[1755053292763,0.1088,4612.1,4611.9,3.351]
[1755053293166,0.1088,4612.1,4612.0,3.351]
[1755053293445,1.9943,4612.1,4612.0,3.351]
[1755053293610,1.9943,4612.1,4611.8,0.001]
[1755053293814,1.8855,4612.0,4611.9,3.351]
[1755053294118,0.1088,4612.1,4611.9,3.351]
[1755053294632,0.1088,4612.1,4611.8,0.001]
[1755053294946,0.1088,4612.1,4611.9,3.351]
[1755053295343,0.1088,4612.1,4612.0,5.197]
[1755053295747,0.1088,4612.1,4612.0,5.6365]
[1755053296852,0.002,4613.0,4612.0,5.6365]
[1755053296853,0.1088,4612.4,4612.0,5.6365]
[1755053297143,0.1088,4612.4,4612.1,0.4395]
[1755053297348,0.1088,4612.4,4612.0,5.197]
[1755053297520,1.4201,4612.4,4612.1,3.351]
[1755053297842,0.1088,4612.5,4612.1,3.351]
[1755053298014,0.1088,4612.5,4612.0,5.197]
[1755053298215,0.002,4613.0,4612.1,5.197]
[1755053298216,1.8855,4612.4,4612.1,5.197]
[1755053298432,1.4201,4612.4,4612.2,3.351]
[1755053298724,0.4654,4612.7,4612.2,3.351]
[1755053298925,0.002,4613.0,4612.2,3.351]
[1755053299121,1.8855,4612.6,4612.2,3.351]
[1755053299321,1.4201,4612.5,4612.2,3.351]
[1755053299646,0.4654,4612.6,4612.2,3.351]
[1755053299946,0.002,4613.0,4612.1,5.197]
[1755053300123,1.4201,4612.6,4612.3,3.351]
[1755053300327,0.002,4613.0,4612.4,0.4395]
[1755053300526,0.002,4613.0,4612.4,1.7794]
[1755053300922,0.002,4613.0,4612.5,0.4395]
[1755053301420,0.002,4613.0,4612.6,1.3399]
[1755053301920,0.002,4613.0,4612.7,1.7794]
[1755053302115,0.002,4613.0,4612.8,3.351]
[1755053302433,0.002,4613.0,4612.8,5.1304]
[1755053302635,0.002,4613.0,4612.9,1.7794]
[1755053304119,0.002,4613.0,4612.9,5.1304]
[1755053304344,0.002,4613.0,4612.9,0.4395]
[1755053304573,0.002,4613.0,4612.9,3.351]
[1755053304951,0.002,4613.0,4612.9,3.7905]
[1755053306337,0.002,4613.0,4612.9,3.35]
[1755053308640,0.002,4613.0,4612.9,8.546]
[1755053309253,0.002,4613.0,4612.9,8.9855]
[1755053309764,0.002,4613.0,4612.9,10.4956]
[1755053310135,0.002,4613.0,4612.9,9.0935]
[1755053310331,0.002,4613.0,4612.9,5.7435]
[1755053310552,0.002,4613.0,4612.9,9.0935]
[1755053310753,0.002,4613.0,4612.9,8.654]
[1755053311146,0.002,4613.0,4612.9,9.1096]
[1755053311345,0.002,4613.0,4612.9,8.654]
[1755053311970,0.002,4613.0,4612.9,5.304]
[1755053312166,0.002,4613.0,4612.9,8.654]
[1755053313459,0.002,4613.0,4612.9,0.108]
[1755053313660,0.002,4613.0,4612.9,8.654]
[1755053314575,0.002,4613.0,4612.9,8.546]
[1755053314871,1.4247,4613.0,4612.9,8.546]
[1755053315067,1.4247,4613.0,4612.9,5.196]
[1755053315246,2.06943,4613.0,4612.9,5.196]
[1755053315454,2.06943,4613.0,4612.9,8.546]
[1755053315869,2.17743,4613.0,4612.9,8.546]
[1755053316266,2.17743,4613.0,4612.9,5.196]
[1755053316460,2.17743,4613.0,4612.9,8.546]
[1755053316658,2.17743,4613.0,4612.9,5.196]
[1755053316867,2.17743,4613.0,4612.9,8.546]
[1755053317472,2.17743,4613.0,4612.5,0.001]
[1755053317647,0.002,4613.0,4612.9,5.196]
[1755053317848,0.002,4613.0,4612.9,8.546]
[1755053318171,0.5666,4613.0,4612.9,8.546]
[1755053318339,1.9893,4613.0,4612.9,8.546]
[1755053318978,1.5327,4613.0,4612.5,0.001]
[1755053319276,2.07823,4612.9,4612.6,8.546]
[1755053319596,1.8793,4612.8,4612.7,3.35]
[1755053319771,1.5307,4612.8,4612.7,3.35]
[1755053319973,0.108,4612.8,4612.7,3.35]
[1755053320951,0.108,4612.8,4612.6,5.196]
[1755053321269,1.4227,4612.7,4612.5,0.001]
[1755053321471,1.4227,4612.7,4612.6,8.546]
[1755053321679,0.26127,4612.8,4612.6,8.546]
[1755053321877,0.108,4612.8,4612.6,8.546]
[1755053322549,1.5307,4612.8,4612.6,8.546]
[1755053323486,1.5307,4612.8,4612.6,5.196]
[1755053323791,1.8793,4612.7,4612.6,5.196]
[1755053324083,1.8793,4612.7,4612.6,8.546]
[1755053324385,2.07823,4612.7,4612.6,8.546]
[1755053327188,0.19893,4612.7,4612.6,8.546]
[1755053327487,0.108,4612.8,4612.6,9.0016]
[1755053327780,0.002,4613.0,4612.7,0.4556]
[1755053327946,0.002,4613.0,4612.8,3.35]
[1755053328350,0.108,4612.9,4612.8,3.35]
[1755053328979,0.108,4612.9,4612.8,3.8056]
[1755053329181,0.002,4613.0,4612.8,5.2077]
[1755053329350,0.002,4613.0,4612.8,4.7521]
[1755053329551,0.002,4613.0,4612.9,0.4556]
[1755053330080,0.002,4613.0,4612.9,3.35]
[1755053330377,0.002,4613.0,4612.9,3.8056]
[1755053330585,0.002,4613.0,4612.9,3.35]
[1755053331888,0.002,4613.0,4612.6,5.196]
[1755053332095,0.11,4613.0,4612.7,3.349]
[1755053332383,1.5327,4613.0,4612.7,3.349]
[1755053332771,1.5327,4613.0,4612.8,0.4556]
[1755053332772,0.11,4613.0,4612.8,0.4556]
[1755053332977,0.11,4613.0,4612.9,3.349]
[1755053333363,0.11,4613.0,4612.9,3.8046]
[1755053336760,0.11,4613.0,4612.9,3.349]
[1755053337180,0.11,4613.0,4612.9,3.8046]
[1755053337956,0.11,4613.0,4612.9,3.349]
[1755053339898,0.11,4613.0,4612.6,5.196]
[1755053340079,0.11,4613.0,4612.7,3.349]
[1755053340658,0.11,4613.0,4612.8,3.349]
[1755053340858,0.11,4613.0,4612.9,3.349]
[1755053343995,0.11,4613.0,4612.9,3.457]
[1755053343996,0.002,4613.0,4612.9,3.457]
[1755053344198,0.002,4613.0,4612.9,5.3069]
[1755053344395,0.002,4613.0,4612.9,10.5019]
[1755053344776,0.002,4613.0,4612.9,10.6099]
[1755053345614,0.002,4613.0,4612.9,9.2244]
[1755053346638,0.002,4613.0,4612.9,5.412]
[1755053346957,0.002,4613.0,4612.9,8.544]
[1755053347171,0.002,4613.0,4612.9,9.0084]
[1755053349457,0.002,4613.0,4612.9,10.3939]
[1755053352635,0.002,4613.0,4612.9,10.5039]
[1755053352836,0.002,4613.0,4612.9,5.7704]
[1755053353037,0.002,4613.0,4612.9,9.1184]
[1755053353569,0.002,4613.0,4612.9,5.306]
[1755053353769,0.002,4613.0,4612.9,8.544]
[1755053357546,0.002,4613.0,4612.8,0.108]
[1755053357747,0.002,4613.0,4612.9,8.543]
[1755053361441,0.002,4613.0,4612.9,5.196]
[1755053361774,0.002,4613.0,4612.9,8.543]
[1755053362080,0.002,4613.0,4612.9,5.196]
[1755053362308,0.002,4613.0,4612.9,8.543]
[1755053363480,0.002,4613.0,4612.9,9.0074]
[1755053363772,0.002,4613.0,4612.9,18.7358]
[1755053363979,0.002,4613.0,4612.9,21.01163368]
[1755053365599,0.002,4613.0,4612.9,18.8438]
[1755053365903,0.002,4613.0,4612.9,21.01163368]
[1755053366108,0.002,4613.0,4612.9,17.66463368]
[1755053366747,0.002,4613.0,4612.9,21.01063368]
[1755053367284,0.002,4613.0,4612.9,13.8944]
[1755053367589,0.002,4613.0,4612.9,17.2404]
[1755053368008,0.002,4613.0,4612.9,12.88]
[1755053368209,0.002,4613.0,4612.9,16.6904]
[1755053369886,0.002,4613.0,4612.9,16.226]
[1755053370093,0.002,4613.0,4612.9,16.6647]
[1755053370287,0.002,4613.0,4612.9,20.74563368]
[1755053370706,0.002,4613.0,4612.9,18.5778]
[1755053371015,0.002,4613.0,4612.9,17.2147]
[1755053371186,0.002,4613.0,4612.9,18.5778]
[1755053371385,0.002,4613.0,4612.9,20.74563368]
[1755053371587,0.002,4613.0,4612.9,18.5778]
[1755053371921,0.002,4613.0,4612.9,20.74563368]
[1755053373428,0.002,4613.0,4612.9,20.85363368]
[1755053374326,0.002,4613.0,4612.9,18.6858]
[1755053374520,0.002,4613.0,4612.9,19.49053368]
[1755053374953,0.002,4613.0,4612.9,20.85363368]
[1755053375357,0.002,4613.0,4612.9,18.6858]
[1755053375561,0.002,4613.0,4612.9,10.1438]
[1755053375855,0.002,4613.0,4612.9,20.85163368]
[1755053376674,0.002,4613.0,4612.9,21.06853368]
[1755053377052,0.002,4613.0,4612.9,19.70543368]
[1755053377433,0.002,4613.0,4612.9,21.06853368]
[1755053379234,0.002,4613.0,4612.9,16.36043368]
[1755053379545,0.002,4613.0,4612.9,19.70443368]
[1755053380555,0.002,4613.0,4612.9,21.06753368]
[1755053380778,0.002,4613.0,4612.9,19.70443368]
[1755053381141,0.002,4613.0,4612.9,12.3416]
[1755053381374,0.002,4613.0,4612.9,12.1247]
[1755053381774,2.002,4613.0,4612.9,8.7807]
[1755053381974,2.002,4613.0,4612.9,14.29253368]
[1755053382476,2.002,4613.0,4612.9,11.686]
[1755053383205,2.002,4613.0,4612.9,8.342]
[1755053383358,3.7222,4613.0,4612.9,11.028]
[1755053383678,2.002,4613.0,4612.9,11.028]
[1755053384467,2.002,4613.0,4612.9,11.47]
[1755053384670,3.2787,4613.0,4612.9,11.028]
[1755053384871,2.002,4613.0,4612.9,11.028]
[1755053385257,2.002,4613.0,4612.9,12.0167]
[1755053385464,2.002,4613.0,4612.9,19.9117]
[1755053385776,2.002,4613.0,4612.9,22.07953368]
[1755053386283,0.002,4613.0,4612.9,22.07953368]
[1755053386582,0.002,4613.0,4612.9,23.44263368]
[1755053386785,0.002,4613.0,4612.9,20.74041528]
[1755053387972,0.002,4613.0,4612.9,19.37731528]
[1755053388680,0.002,4613.0,4612.9,16.03331528]
[1755053388880,0.002,4613.0,4612.9,10.40061528]
[1755053389220,0.002,4613.0,4612.9,13.74361528]
[1755053391682,0.002,4613.0,4612.9,10.40061528]
[1755053391882,1.0307,4613.6,4613.3,2.16764369]
[1755053392085,0.002,4614.0,4613.4,5.51059709]
[1755053392295,0.002,4614.0,4613.5,0.108]
[1755053392499,0.002,4614.0,4613.9,0.108]
[1755053392824,0.002,4614.0,4613.9,5.61836383]
[1755053393121,0.002,4614.0,4613.9,3.451]
[1755053393525,0.4455,4614.0,4613.9,3.451]
[1755053393892,1.7222,4614.0,4613.9,3.451]
[1755053394252,1.7222,4614.0,4613.9,0.26784612]
[1755053394407,0.002,4614.0,4613.9,6.32820995]
[1755053394595,0.002,4614.0,4613.9,8.34690995]
[1755053394795,0.002,4614.0,4613.9,8.63379341]
[1755053395199,0.002,4614.0,4613.9,8.99628995]
[1755053395399,0.002,4614.0,4613.9,16.89128995]
[1755053395835,0.002,4614.0,4613.9,15.52718995]
[1755053396173,0.002,4614.0,4613.9,15.31028995]
[1755053396752,0.002,4614.0,4613.9,16.67338995]
[1755053397051,0.002,4614.0,4613.9,14.47617341]
[1755053398002,0.002,4614.0,4613.9,12.82618995]
[1755053399020,0.002,4614.0,4613.9,14.18928995]
[1755053399539,0.002,4614.0,4613.9,12.82618995]
[1755053399906,0.002,4614.0,4613.9,7.63118995]
[1755053400307,0.002,4614.0,4613.9,4.29018995]
[1755053400521,0.002,4614.0,4613.9,7.63118995]
[1755053400738,0.002,4614.0,4613.9,4.29018995]
[1755053400942,1.7944,4614.0,4613.9,4.25822612]
[1755053401142,0.002,4614.0,4613.9,5.77620995]
[1755053401343,0.002,4614.0,4613.9,5.99310995]
[1755053401545,0.002,4614.0,4613.9,4.47525512]
[1755053401843,0.002,4614.0,4613.9,7.65571895]
[1755053402049,0.002,4614.0,4613.9,9.21680241]
[1755053403359,23.98260597,4614.5,4614.4,2.93402898]
[1755053403566,23.98260597,4614.5,4614.4,16.21447803]
[1755053403801,1.23,4614.5,4614.4,16.10647803]
[1755053404019,7.38,4614.9,4614.8,6.51284114]
[1755053404020,7.0331,4614.9,4614.8,6.51284114]
[1755053404193,4.51667717,4614.9,4614.8,11.8780246]
[1755053404503,34.259,4615.3,4615.0,0.55]
[1755053404704,27.85589141,4615.3,4615.2,2.829]
[1755053404859,27.85589141,4615.3,4615.2,5.86256559]
[1755053405064,27.85589141,4615.3,4615.2,2.73946559]
[1755053405291,27.85589141,4615.3,4615.2,8.77946559]
[1755053405490,27.85589141,4615.3,4615.2,13.97246559]
[1755053405800,2.25858993,4615.3,4615.2,15.4076313]
[1755053406000,1e-08,4615.3,4615.2,34.96480525]
[1755053406208,3.4731,4616.8,4616.7,2.93294934]
[1755053406407,3.4731,4616.8,4616.7,15.59561493]
[1755053406615,3.4731,4616.8,4616.7,18.32561493]
[1755053406819,3.4731,4616.8,4616.7,19.92665174]
[1755053407110,8.61,4617.5,4616.7,19.92665174]
[1755053407111,8.61,4617.5,4617.0,0.55]
[1755053407310,8.61,4617.5,4617.2,0.55]
[1755053407499,8.61,4617.5,4617.4,0.55]
[1755053407675,8.61,4617.5,4617.4,2.2873]
[1755053408004,8.61,4617.5,4617.4,7.79202096]
[1755053408208,8.61,4617.5,4617.4,4.05242552]
[1755053408781,9.9446,4617.5,4617.4,4.05242552]
[1755053409176,8.61,4617.5,4617.4,0.71342552]
[1755053409374,9.9446,4617.5,4617.4,0.16342552]
[1755053409598,10.4024,4617.5,4617.4,3.34840903]
[1755053409808,10.4024,4617.5,4617.4,3.89840903]
[1755053409809,8.61,4617.5,4617.4,3.89840903]
[1755053410670,8.61,4617.5,4617.4,0.55940903]
[1755053410671,9.9446,4617.5,4617.4,0.55940903]
[1755053410909,10.4024,4617.5,4617.4,3.89840903]
[1755053411113,9.9446,4617.5,4617.4,3.89840903]
[1755053411484,9.9446,4617.5,4617.4,4.0572413]
[1755053411681,10.4024,4617.5,4617.4,4.0572413]
[1755053411880,10.4024,4617.5,4617.4,0.7182413]
[1755053412084,8.61,4617.5,4617.4,4.0572413]
[1755053413386,10.4024,4617.5,4617.4,0.1682413]
[1755053413611,11.44264,4617.5,4617.4,3.5072413]
[1755053413820,10.4024,4617.5,4617.4,4.1561723]
[1755053414115,8.61,4617.5,4617.4,11.0752413]
[1755053414491,8.61,4617.5,4617.4,11.1832413]
[1755053414889,8.61,4617.5,4617.4,11.7332413]
[1755053415531,10.4024,4617.5,4617.4,19.0712413]
[1755053416488,10.95249969,4617.5,4617.4,11.5032413]
[1755053416822,10.4024,4617.5,4617.4,11.5032413]
[1755053418632,10.4024,4617.5,4617.4,8.00640903]
[1755053418790,10.4024,4617.5,4617.4,11.34440903]
[1755053419289,10.4024,4617.5,4617.4,11.50885708]
[1755053419612,9.9446,4617.5,4617.4,19.07785708]